bitfinex-derivatives/quotes_SOLF0:USTF0_20240927
["timestamp","ask_amount","ask_price","bid_price","bid_amount"]
[1727463277185,12.9033,158.02,157.99,3.1638]
[1727463277686,3.1637,158.01,157.98,9.74]
[1727463277987,9.74,158.01,157.97,9.74]
[1727463278391,4.65286779,158.04,157.97,9.74]
[1727463278585,9.74,158.02,157.97,9.74]
[1727463278986,12.9034,158.02,157.99,3.1638]
[1727463279186,4.65286779,158.04,158.01,9.74]
[1727463280792,7.81596779,158.04,158.02,3.1633]
[1727463283094,17.55596779,158.04,158.02,3.1633]
[1727463284906,12.9033,158.03,158.0,3.1636]
[1727463291802,3.1633,158.03,158.0,12.9036]
[1727463298501,3.1633,158.03,158.0,3.1636]
[1727463306904,13.97431907,158.03,158.0,3.1636]
[1727463307815,3.1633,158.03,158.0,3.1636]
[1727463308513,13.974847,158.03,158.0,3.1636]
[1727463309326,10.811547,158.03,157.99,9.74]
[1727463309523,10.811547,158.03,158.01,12.9034]
[1727463309814,7.81586779,158.04,158.02,9.74]
[1727463309815,4.65286779,158.04,158.02,9.74]
[1727463310007,4.65286779,158.04,158.03,12.9031]
[1727463312818,2.07158802,158.05,158.04,3.1629]
[1727463313111,3.16220226,158.06,158.03,9.74]
[1727463313315,3.16220226,158.06,158.05,9.74]
[1727463313611,4.1585503,158.07,158.05,9.74]
[1727463314219,4.1585503,158.07,158.06,3.1625]
[1727463321717,4.1585503,158.07,158.06,12.9025]
[1727463324723,4.1585503,158.07,158.0,3.19108003]
[1727463324924,13.8985503,158.07,158.03,9.74]
[1727463325121,17.0609503,158.07,158.03,9.74]
[1727463325518,7.3209503,158.07,158.03,9.74]
[1727463325718,7.3209503,158.07,158.04,3.1629]
[1727463326723,4.1585503,158.07,158.05,3.1626]
[1727463326927,4.1585503,158.07,158.06,9.74]
[1727463327731,4.1585503,158.07,158.05,12.9026]
[1727463330043,4.1585503,158.07,158.05,3.1626]
[1727463330333,4.1585503,158.07,158.05,12.9026]
[1727463333837,4.1585503,158.07,158.06,12.9025]
[1727463339421,4.1585503,158.07,158.05,3.1626]
[1727463339625,4.1585503,158.07,158.05,12.9026]
[1727463341332,4.1585503,158.07,158.06,12.9025]
[1727463342035,4.1585503,158.07,158.06,9.74]
[1727463346239,4.1585503,158.07,158.05,12.9026]
[1727463346435,4.1585503,158.07,157.96,6.329]
[1727463346639,13.8985503,158.07,158.03,9.74]
[1727463346847,9.74,158.06,158.01,9.74]
[1727463347335,12.9026,158.06,158.02,3.1632]
[1727463347540,12.9026,158.06,158.01,9.74]
[1727463348136,3.1626,158.06,158.03,9.74]
[1727463348939,3.1626,158.06,158.03,12.9031]
[1727463350240,3.1626,158.06,158.03,3.1631]
[1727463350544,3.1626,158.06,158.03,12.9031]
[1727463353645,17.0609503,158.07,158.03,12.9031]
[1727463358547,8.47242829,158.1,158.06,9.74]
[1727463358754,5.52234086,158.16,158.09,9.74]
[1727463359045,5.52234086,158.16,158.12,12.9013]
[1727463359553,5.52234086,158.16,158.14,9.74]
[1727463360246,5.52234086,158.16,158.15,3.1607]
[1727463360844,5.52234086,158.16,158.15,12.9007]
[1727463361344,5.52234086,158.16,158.14,9.74]
[1727463362654,5.52234086,158.16,158.13,12.9011]
[1727463364952,5.52234086,158.16,158.13,9.74]
[1727463365353,15.26234086,158.16,158.12,9.74]
[1727463365649,9.74,158.14,158.08,75.37396215]
[1727463365852,9.74,158.14,158.09,9.74]
[1727463366954,9.74,158.14,158.09,12.9019]
[1727463366955,12.9011,158.14,158.09,12.9019]
[1727463368160,12.9011,158.14,158.1,3.1617]
[1727463369856,9.74,158.13,158.1,3.1617]
[1727463370855,9.74,158.12,158.09,3.1618]
[1727463371060,9.74,158.12,158.08,75.37396215]
[1727463371560,9.74,158.12,158.11,3.1615]
[1727463371762,9.74,158.13,158.08,85.11396215]
[1727463372162,9.74,158.13,158.1,3.1617]
[1727463375270,9.74,158.11,158.09,3.1618]
[1727463375757,9.74,158.11,158.08,75.37396215]
[1727463375955,9.74,158.11,158.08,78.53596215]
[1727463378074,9.74,158.11,158.09,3.1619]
[1727463378271,9.74,158.13,158.08,85.11396215]
[1727463378676,9.74,158.13,158.1,3.1616]
[1727463378859,5.52234086,158.16,158.12,9.74]
[1727463379066,5.52234086,158.16,158.13,9.74]
[1727463379772,5.52234086,158.16,158.14,3.1609]
[1727463380269,5.52234086,158.16,158.15,3.1607]
[1727463381262,5.52234086,158.16,158.13,9.74]
[1727463381466,5.52234086,158.16,158.14,3.1608]
[1727463386775,5.52234086,158.16,158.13,3.161]
[1727463386973,5.52234086,158.16,158.12,9.74]
[1727463387174,5.52234086,158.16,158.13,9.74]
[1727463387686,5.52234086,158.16,158.13,12.901]
[1727463388285,5.52234086,158.16,158.14,12.9007]
[1727463388970,5.52234086,158.16,158.15,3.1607]
[1727463389370,5.52234086,158.16,158.14,9.74]
[1727463390787,5.52234086,158.16,158.14,12.9008]
[1727463391783,5.52234086,158.16,158.13,9.74]
[1727463392395,5.52234086,158.16,158.14,9.74]
[1727463392698,5.52234086,158.16,158.14,12.9009]
[1727463397396,1.30734056,158.19,158.15,9.74]
[1727463397590,1.30734056,158.19,158.17,9.74]
[1727463397899,1.30734056,158.19,158.18,9.74]
[1727463398493,1.30734056,158.19,158.18,12.9001]
[1727463398891,6.92940734,158.2,158.19,3.1599]
[1727463399292,6.92940734,158.2,158.19,12.8999]
[1727463407017,1.70779005,158.25,158.21,3.1595]
[1727463407308,1.70779005,158.25,158.21,12.8995]
[1727463410901,4.86649005,158.25,158.2,3.1596]
[1727463411101,14.25595223,158.24,158.2,3.1596]
[1727463411297,14.25595223,158.24,158.2,12.8996]
[1727463411507,4.51595223,158.24,158.2,12.8996]
[1727463411912,4.51595223,158.24,158.21,3.1595]
[1727463412310,14.25595223,158.24,158.21,3.1595]
[1727463414307,4.51595223,158.24,158.21,3.1595]
[1727463414503,4.51595223,158.24,158.21,12.8995]
[1727463414909,4.51595223,158.24,158.21,3.1595]
[1727463415209,4.51595223,158.24,158.21,9.74]
[1727463415415,4.51595223,158.24,158.21,12.94339308]
[1727463416408,4.51595223,158.24,158.23,9.74]
[1727463417815,4.51595223,158.24,158.23,12.8991]
[1727463424119,4.51595223,158.24,158.23,3.1591]
[1727463424323,4.51595223,158.24,158.22,12.8993]
[1727463424517,4.51595223,158.24,158.22,3.1593]
[1727463425028,4.51595223,158.24,158.23,12.8991]
[1727463431728,3.41525921,158.26,158.24,9.74]
[1727463431919,3.41525921,158.26,158.19,3.22857975]
[1727463431920,3.41525921,158.26,158.25,9.74]
[1727463432517,3.58482124,158.28,158.25,9.74]
[1727463432716,2.46355462,158.29,158.13,299.26]
[1727463432717,3.05746873,158.33,158.27,9.74]
[1727463432918,2.6526,158.37,158.33,3.1571]
[1727463433117,2.6526,158.37,158.33,12.8971]
[1727463434018,2.6526,158.37,158.33,3.1571]
[1727463434220,2.6526,158.37,158.33,12.8971]
[1727463435123,2.6526,158.37,158.33,3.1571]
[1727463435324,19.68753445,158.34,158.29,9.74]
[1727463435929,9.94753445,158.34,158.31,9.74]
[1727463436524,9.94753445,158.34,158.31,12.8974]
[1727463436915,19.68753445,158.34,158.24,68.26]
[1727463437120,19.68753445,158.34,158.29,9.74]
[1727463437521,19.68753445,158.34,158.29,12.8977]
[1727463438335,22.84443445,158.34,158.29,12.8977]
[1727463439927,9.94753445,158.34,158.31,9.74]
[1727463440832,22.84443445,158.34,158.3,9.74]
[1727463442433,9.94753445,158.34,158.31,9.74]
[1727463443137,19.68753445,158.34,158.3,12.8977]
[1727463443328,19.68753445,158.34,158.3,3.1577]
[1727463443531,22.84453445,158.34,158.3,3.1577]
[1727463444624,9.94753445,158.34,158.31,12.8975]
[1727463447542,9.94753445,158.34,158.33,9.74]
[1727463448039,9.94753445,158.34,158.33,12.8971]
[1727463448340,1.05429079,158.35,158.33,9.74]
[1727463448536,7.82819952,158.36,158.34,9.74]
[1727463448737,7.82819952,158.36,158.35,9.74]
[1727463449945,7.82819952,158.36,158.35,12.8967]
[1727463450243,4.99514198,158.38,158.35,9.74]
[1727463450443,4.99514198,158.38,158.37,12.8963]
[1727463452748,4.99514198,158.38,158.37,9.74]
[1727463453046,4.99514198,158.38,158.34,3.12785115]
[1727463453246,4.99514198,158.38,158.37,9.74]
[1727463453849,1.89514198,158.38,158.37,3.1563]
[1727463454048,7.26809806,158.42,158.37,12.8656411]
[1727463454241,7.26809806,158.42,158.41,9.74]
[1727463454436,7.26809806,158.42,158.41,12.8955]
[1727463454735,1.55187777,158.43,158.41,9.74]
[1727463454955,1.55187777,158.43,158.42,3.1553]
[1727463456347,1.55187777,158.43,158.42,18.2953]
[1727463457252,1.55187777,158.43,158.42,3.1553]
[1727463457742,1.55187777,158.43,158.41,18.2955]
[1727463458238,1.55187777,158.43,158.41,15.14]
[1727463459343,1.55187777,158.43,158.39,15.14]
[1727463460050,1.55187777,158.43,158.39,18.2958]
[1727463460836,1.55187777,158.43,158.39,15.14]
[1727463461041,1.55187777,158.43,158.41,15.14]
[1727463461344,1.55187777,158.43,158.41,18.2955]
[1727463462253,1.55187777,158.43,158.42,3.1553]
[1727463462836,13.30997193,158.44,158.43,3.1551]
[1727463463039,13.30997193,158.44,158.43,18.2951]
[1727463463647,1.44997969,158.47,158.43,15.14]
[1727463463848,1.44997969,158.47,158.46,15.14]
[1727463464850,1.44997969,158.47,158.46,18.2945]
[1727463466445,3.81915446,158.51,158.46,15.14]
[1727463466657,3.81915446,158.51,158.49,15.14]
[1727463467548,3.46156124,158.55,158.49,15.14]
[1727463467748,3.46156124,158.55,158.51,15.14]
[1727463468754,3.46156124,158.55,158.51,18.2934]
[1727463468951,3.46156124,158.55,158.51,15.14]
[1727463469846,3.46156124,158.55,158.52,3.1533]
[1727463470445,3.46156124,158.55,158.51,18.2935]
[1727463470672,3.46156124,158.55,158.51,3.1535]
[1727463471050,3.46156124,158.55,158.5,3.1537]
[1727463471444,3.46156124,158.55,158.49,15.14]
[1727463471648,3.153,158.54,158.47,15.14]
[1727463472044,3.46156124,158.55,158.47,15.14]
[1727463472249,6.61446124,158.55,158.49,3.1539]
[1727463472446,3.46156124,158.55,158.49,3.1539]
[1727463472858,6.61446124,158.55,158.49,3.1539]
[1727463473049,3.46156124,158.55,158.5,3.1537]
[1727463473249,6.61436124,158.55,158.47,15.14]
[1727463474050,6.61436124,158.55,158.5,3.1536]
[1727463474358,6.61436124,158.55,158.47,15.14]
[1727463474559,6.61436124,158.55,158.5,3.1536]
[1727463475559,6.61436124,158.55,158.51,3.1535]
[1727463475952,3.46156124,158.55,158.51,15.14]
[1727463476254,3.46156124,158.55,158.54,3.1529]
[1727463477764,3.46156124,158.55,158.51,15.14]
[1727463478165,3.46156124,158.55,158.52,3.1533]
[1727463479451,3.46156124,158.55,158.54,3.1529]
[1727463480663,3.46156124,158.55,158.53,3.1531]
[1727463481266,3.46156124,158.55,158.54,3.1529]
[1727463481649,3.46156124,158.55,158.46,15.14]
[1727463482351,6.61446124,158.55,158.5,3.1535]
[1727463482754,3.46156124,158.55,158.46,15.14]
[1727463482954,15.14,158.53,158.44,15.14]
[1727463483655,15.14,158.53,158.4,69.64804257]
[1727463483656,15.14,158.51,158.42,15.14]
[1727463483861,1.3535,158.5,158.42,15.14]
[1727463484361,16.4935,158.5,158.42,15.14]
[1727463484964,3.1543,158.48,158.43,3.1551]
[1727463485170,15.14,158.48,158.4,87.98417109]
[1727463485671,3.1544,158.47,158.4,84.78804257]
[1727463486662,3.1544,158.47,158.42,3.1552]
[1727463487056,15.14,158.48,158.4,84.78804257]
[1727463487057,3.1545,158.46,158.4,84.78804257]
[1727463487566,3.1544,158.47,158.4,84.78804257]
[1727463488064,15.14,158.48,158.38,15.14]
[1727463488065,3.1549,158.45,158.38,15.14]
[1727463488673,3.1549,158.45,158.4,3.1556]
[1727463489376,2.627,158.47,158.41,3.1555]
[1727463490272,3.1547,158.45,158.41,3.1555]
[1727463490577,3.1547,158.46,158.42,3.1553]
[1727463490968,3.1547,158.46,158.41,3.1554]
[1727463491563,3.1547,158.46,158.4,15.14]
[1727463491564,5.7815,158.47,158.4,15.14]
[1727463491770,2.627,158.47,158.42,15.14]
[1727463492168,2.627,158.47,158.44,3.1548]
[1727463492675,1.3535,158.5,158.46,15.14]
[1727463493066,1.3535,158.5,158.48,15.14]
[1727463493268,1.3535,158.5,158.48,18.294]
[1727463493665,1.3535,158.5,158.48,15.14]
[1727463494060,1.3535,158.5,158.46,15.14]
[1727463494770,1.3535,158.5,158.46,18.2944]
[1727463494971,4.5073,158.5,158.46,18.2944]
[1727463496572,1.3535,158.5,158.46,18.2944]
[1727463497178,1.3535,158.5,158.46,15.14]
[1727463497680,1.3535,158.5,158.46,18.2944]
[1727463498181,1.3535,158.5,158.46,15.14]
[1727463498779,3.1541,158.49,158.46,15.14]
[1727463499173,1.3535,158.5,158.46,15.14]
[1727463499375,1.3535,158.5,158.48,15.14]
[1727463499871,2.596,158.54,158.48,15.14]
[1727463500066,3.9288,158.54,158.48,15.14]
[1727463500673,3.9288,158.54,158.5,15.14]
[1727463501485,3.46156124,158.55,158.5,15.14]
[1727463501986,3.46156124,158.55,158.52,15.14]
[1727463503078,3.46156124,158.55,158.53,3.1531]
[1727463503579,3.46156124,158.55,158.54,15.14]
[1727463503883,3.46156124,158.55,158.54,18.2929]
[1727463507382,3.46156124,158.55,158.54,15.14]
[1727463511790,3.46156124,158.55,158.49,15.14]
[1727463512191,3.46156124,158.55,158.48,15.14]
[1727463512684,3.46156124,158.55,158.46,15.14]
[1727463512990,2.6739,158.54,158.46,15.14]
[1727463513189,3.1537,158.51,158.47,3.1542]
[1727463516288,3.15269593,158.52,158.46,3.1544]
[1727463516494,17.8139,158.54,158.46,3.1544]
[1727463516891,17.8139,158.54,158.44,15.14]
[1727463516892,3.1539,158.5,158.47,3.1543]
[1727463517982,3.09179409,158.52,158.46,3.1545]
[1727463518298,4.49913363,158.51,158.42,15.14]
[1727463519785,3.1543,158.48,158.42,15.14]
[1727463520283,3.1543,158.48,158.44,3.1548]
[1727463520681,3.1539,158.49,158.44,3.1548]
[1727463522006,3.1539,158.49,158.45,3.1547]
[1727463523692,3.1539,158.49,158.42,15.14]
[1727463523693,3.1539,158.49,158.46,3.1545]
[1727463523889,3.1539,158.49,158.4,1.2929]
[1727463523890,3.1539,158.49,158.4,15.14]
[1727463524498,3.1539,158.49,158.45,3.1546]
[1727463526491,15.14,158.48,158.4,15.14]
[1727463526795,16.4631,158.48,158.4,15.14]
[1727463526993,19.6173,158.48,158.45,3.1547]
[1727463528583,19.6173,158.48,158.44,3.1548]
[1727463528784,3.1544,158.47,158.44,3.1548]
[1727463533195,4.4773,158.48,158.45,3.1545]
[1727463533897,3.1544,158.47,158.44,3.1548]
[1727463534090,1.3231,158.48,158.39,15.14]
[1727463534291,4.4773,158.48,158.45,3.1546]
[1727463534490,9.7,158.46,158.45,3.1546]
[1727463535488,9.7,158.46,158.44,3.1549]
[1727463535693,3.1543,158.47,158.41,9.7]
[1727463535900,9.7,158.45,158.41,9.7]
[1727463536903,9.7,158.45,158.44,3.1549]
[1727463541411,9.7,158.45,158.43,3.1551]
[1727463541595,9.7,158.44,158.43,3.1551]
[1727463542203,9.7,158.44,158.33,9.53211845]
[1727463542400,9.7,158.4,158.36,9.7]
[1727463543101,9.7,158.4,158.33,9.53211845]
[1727463543301,9.7,158.4,158.35,9.7]
[1727463544599,9.7,158.39,158.37,3.1562]
[1727463544815,9.7,158.39,158.34,9.7]
[1727463545002,3.1558,158.4,158.36,3.1565]
[1727463545003,9.7,158.38,158.36,3.1565]
[1727463545714,9.7,158.38,158.35,3.1566]
[1727463546103,9.7,158.37,158.35,3.1566]
[1727463546293,9.7,158.37,158.34,3.1568]
[1727463546909,9.7,158.35,158.33,3.1571]
[1727463547096,2.6299,158.42,158.26,4.42501857]
[1727463547297,1.3092,158.46,158.41,9.7]
[1727463547504,1.3092,158.46,158.42,9.7]
[1727463547897,1.3092,158.46,158.26,4.42501857]
[1727463548095,1.3092,158.46,158.42,9.7]
[1727463548404,2.604,158.5,158.45,9.7]
[1727463548606,3.1543,158.48,158.45,9.7]
[1727463549207,1.3092,158.54,158.47,9.7]
[1727463549404,1.3092,158.54,158.5,9.7]
[1727463549405,11.0092,158.54,158.5,9.7]
[1727463549804,6.25651955,158.53,158.5,9.7]
[1727463550196,4.73116124,158.55,158.51,9.7]
[1727463550401,4.73116124,158.55,158.49,15.15]
[1727463551211,4.73116124,158.55,158.51,3.1534]
[1727463552102,3.46156124,158.55,158.49,15.15]
[1727463552306,3.46156124,158.55,158.52,15.15]
[1727463552816,3.46156124,158.55,158.52,18.3033]
[1727463553227,3.46156124,158.55,158.52,15.15]
[1727463553415,3.46156124,158.55,158.52,18.3033]
[1727463559522,3.46156124,158.55,158.49,15.15]
[1727463561925,3.46156124,158.55,158.51,3.1534]
[1727463562517,3.46156124,158.55,158.51,15.15]
[1727463564031,3.46156124,158.55,158.52,3.1532]
[1727463571534,3.46156124,158.55,158.51,3.1535]
[1727463572423,3.46156124,158.55,158.52,9.7]
[1727463572840,6.61436124,158.55,158.52,9.7]
[1727463575726,6.61436124,158.55,158.51,3.1535]
[1727463575939,3.46156124,158.55,158.54,9.7]
[1727463580837,3.46156124,158.55,158.53,9.7]
[1727463598149,6.61436124,158.55,158.53,9.7]
[1727463601353,3.46156124,158.55,158.53,9.7]
[1727463603359,6.61436124,158.55,158.53,9.7]
[1727463604656,3.46156124,158.55,158.53,9.7]
[1727463605167,6.61426124,158.55,158.53,9.7]
[1727463605571,6.61426124,158.55,158.52,9.7]
[1727463605572,3.46156124,158.55,158.52,9.7]
[1727463605774,3.46156124,158.55,158.45,2.3302]
[1727463605775,13.16156124,158.55,158.45,2.3302]
[1727463605981,13.16156124,158.55,158.5,9.7]
[1727463606280,3.46156124,158.55,158.51,9.7]
[1727463606481,3.46156124,158.55,158.52,9.7]
[1727463606674,6.61436124,158.55,158.52,9.7]
[1727463611168,3.46156124,158.55,158.53,9.7]
[1727463612184,13.16156124,158.55,158.45,2.3302]
[1727463612379,13.16156124,158.55,158.51,9.7]
[1727463612584,13.16156124,158.55,158.52,9.7]
[1727463612880,3.46156124,158.55,158.52,9.7]
[1727463613680,3.153,158.54,158.52,9.7]
[1727463618191,6.61436124,158.55,158.53,9.7]
[1727463618481,6.61436124,158.55,158.54,9.7]
[1727463618482,3.46156124,158.55,158.54,9.7]
[1727463618687,3.46156124,158.55,158.54,12.8529]
[1727463619079,3.46156124,158.55,158.54,3.1529]
[1727463619284,13.16156124,158.55,158.33,68.14]
[1727463619484,12.3910457,158.54,158.34,2.3865]
[1727463619688,9.7,158.45,158.34,2.3865]
[1727463619881,9.7,158.44,158.34,2.3865]
[1727463620078,9.7,158.44,158.4,9.7]
[1727463620384,9.7430457,158.52,158.43,9.7]
[1727463620587,1.3571,158.53,158.51,9.7]
[1727463620779,1.3571,158.53,158.52,9.7]
[1727463620979,1.3571,158.53,158.51,9.7]
[1727463621178,1.3571,158.53,158.49,3.1538]
[1727463621382,3.46156124,158.55,158.52,9.7]
[1727463621582,3.46156124,158.55,158.54,9.7]
[1727463622285,3.46156124,158.55,158.54,12.8529]
[1727463623481,3.46156124,158.55,158.51,3.13730779]
[1727463623482,3.26986601,158.59,158.56,9.7]
[1727463623876,3.1523,158.57,158.5,3.12804215]
[1727463624081,12.96986601,158.59,158.55,9.7]
[1727463624777,12.96986601,158.59,158.5,3.12804215]
[1727463624986,3.26986601,158.59,158.56,9.7]
[1727463625180,6.42186601,158.59,158.57,9.7]
[1727463626885,6.42186601,158.59,158.56,9.7]
[1727463629290,3.26986601,158.59,158.57,9.7]
[1727463630092,3.26986601,158.59,158.56,9.7]
[1727463630288,13.00518036,158.59,158.56,9.7]
[1727463630591,3.26986601,158.59,158.57,3.1523]
[1727463630782,13.00518036,158.59,158.57,3.1523]
[1727463631791,13.00518036,158.59,158.56,9.7]
[1727463631792,16.15718036,158.59,158.56,12.8525]
[1727463632397,22.70518036,158.59,158.54,9.7]
[1727463632597,12.96986601,158.59,158.54,9.7]
[1727463633889,16.12186601,158.59,158.56,3.1525]
[1727463634890,6.42186601,158.59,158.56,12.8525]
[1727463635486,16.12186601,158.59,158.55,12.8527]
[1727463635691,6.42186601,158.59,158.55,12.8527]
[1727463635899,16.12186601,158.59,158.55,12.8527]
[1727463637196,3.1522,158.58,158.55,12.8527]
[1727463639600,16.12186601,158.59,158.56,3.1525]
[1727463639798,6.42186601,158.59,158.56,12.8525]
[1727463640699,6.42186601,158.59,158.51,1.2519]
[1727463640700,3.26986601,158.59,158.58,9.7]
[1727463641105,3.26986601,158.59,158.58,3.1521]
[1727463641303,3.26986601,158.59,158.51,1.2519]
[1727463641500,3.26986601,158.59,158.57,9.7]
[1727463641704,3.26986601,158.59,158.58,12.8521]
[1727463648306,3.26986601,158.59,158.56,3.1525]
[1727463648498,3.26986601,158.59,158.56,9.7]
[1727463648702,3.26986601,158.59,158.57,9.7]
[1727463649710,3.26986601,158.59,158.57,12.8522]
[1727463652213,3.26986601,158.59,158.58,12.8521]
[1727463653315,3.11850854,158.62,158.61,3.1515]
[1727463653523,3.11850854,158.62,158.61,12.8515]
[1727463654425,1.6447824,158.66,158.61,9.7]
[1727463654612,1.6447824,158.66,158.65,9.7]
[1727463654815,1.6447824,158.66,158.65,12.8508]
[1727463655430,1.67397126,158.7,158.65,9.7]
[1727463655715,1.67397126,158.7,158.67,9.7]
[1727463656019,1.67397126,158.7,158.67,12.8503]
[1727463656224,1.67397126,158.7,158.69,9.7]
[1727463656609,1.67397126,158.7,158.69,12.85]
[1727463658311,1.67397126,158.7,158.69,3.15]
[1727463659415,1.67397126,158.7,158.66,15.13]
[1727463659921,1.67397126,158.7,158.67,3.1502]
[1727463661413,1.67397126,158.7,158.66,21.43489358]
[1727463662217,1.67397126,158.7,158.6,68.1]
[1727463662218,16.80397126,158.7,158.6,68.1]
[1727463662522,15.13,158.66,158.6,3.18559049]
[1727463662716,1.67397126,158.7,158.64,15.13]
[1727463663120,1.67397126,158.7,158.6,3.16510742]
[1727463663121,16.80397126,158.7,158.61,15.13]
[1727463663417,16.80397126,158.7,158.59,15.13]
[1727463663822,1.67397126,158.7,158.59,15.13]
[1727463664018,15.13,158.66,158.56,3.11374218]
[1727463664222,15.13,158.66,158.56,15.13]
[1727463664418,15.13,158.66,158.56,18.28848981]
[1727463665224,3.1511,158.64,158.59,3.1518]
[1727463667426,3.1511,158.64,158.59,18.2818]
[1727463667619,15.13,158.66,158.56,3.15848981]
[1727463667821,2.6317,158.65,158.56,15.13]
[1727463668021,3.9454,158.65,158.56,18.21137666]
[1727463668414,3.1514,158.62,158.56,15.13]
[1727463668617,3.9454,158.65,158.58,15.13]
[1727463669626,3.1512,158.63,158.53,3.41035436]
[1727463669932,3.1512,158.63,158.58,15.13]
[1727463670319,3.1512,158.63,158.59,3.1519]
[1727463671633,3.9454,158.65,158.56,15.13]
[1727463672535,3.1513,158.63,158.56,15.13]
[1727463672833,3.9454,158.65,158.56,15.13]
[1727463673035,3.9454,158.65,158.58,3.1521]
[1727463673927,3.1515,158.62,158.58,3.1521]
[1727463675140,19.0754,158.65,158.56,18.34293856]
[1727463675840,3.1517,158.61,158.57,3.1522]
[1727463676339,19.0754,158.65,158.54,15.13]
[1727463676528,15.13,158.63,158.54,15.13]
[1727463676729,15.13,158.63,158.53,15.13]
[1727463677045,15.13,158.61,158.54,3.1529]
[1727463678438,3.1523,158.58,158.54,3.1529]
[1727463680340,3.1523,158.58,158.55,12.8427]
[1727463680638,3.1523,158.58,158.55,9.69]
[1727463681429,3.1524,158.57,158.55,9.69]
[1727463682343,3.1524,158.57,158.54,9.69]
[1727463682545,1.3137,158.65,158.56,9.69]
[1727463682839,2.5665,158.67,158.64,9.69]
[1727463683044,3.1507,158.66,158.64,9.69]
[1727463683638,3.1507,158.66,158.63,9.69]
[1727463683838,3.1507,158.66,158.63,12.8411]
[1727463684439,3.1507,158.66,158.63,3.1511]
[1727463685837,5.7169,158.67,158.64,3.1509]
[1727463687439,2.5665,158.67,158.59,15.13]
[1727463687843,3.1509,158.65,158.62,3.1512]
[1727463688439,3.1509,158.65,158.63,3.1511]
[1727463689849,3.1506,158.66,158.63,3.1511]
[1727463690349,2.5665,158.67,158.63,3.1511]
[1727463690539,3.1509,158.65,158.62,3.1513]
[1727463692047,3.1509,158.65,158.63,3.1511]
[1727463692348,17.6965,158.67,158.57,15.13]
[1727463692648,3.1513,158.63,158.6,3.1516]
[1727463692947,15.13,158.63,158.55,75.48413819]
[1727463693150,15.13,158.63,158.57,3.1522]
[1727463693151,3.1518,158.6,158.57,3.1522]
[1727463693654,20.77480491,158.61,158.55,57.24879912]
[1727463693954,3.1521,158.59,158.56,3.1524]
[1727463694951,3.1521,158.59,158.57,3.1523]
[1727463698552,3.1521,158.59,158.56,3.1524]
[1727463699248,3.1521,158.59,158.57,3.1523]
[1727463700254,2.5546,158.61,158.57,15.13]
[1727463701753,2.5546,158.61,158.6,3.1517]
[1727463702250,2.5546,158.61,158.53,15.13]
[1727463702452,3.1518,158.6,158.53,15.13]
[1727463703551,3.1518,158.6,158.56,3.1524]
[1727463703751,2.5546,158.61,158.55,15.13]
[1727463703948,2.5546,158.61,158.58,3.152]
[1727463705850,5.7062,158.61,158.58,3.152]
[1727463707240,5.7062,158.61,158.57,3.1523]
[1727463708253,2.5546,158.61,158.57,3.1523]
[1727463708848,5.7063,158.61,158.57,3.1523]
[1727463710757,3.1518,158.6,158.57,3.1523]
[1727463711054,15.13,158.6,158.51,18.33429307]
[1727463711248,3.1521,158.59,158.51,18.33429307]
[1727463711450,3.1521,158.59,158.55,3.1526]
[1727463711754,3.152,158.59,158.55,3.1526]
[1727463712556,18.2819,158.6,158.51,18.33429307]
[1727463713556,18.2819,158.6,158.56,3.1524]
[1727463714455,15.13,158.6,158.55,3.1527]